[Event "Early-Titled-Tuesday-Blitz-March-26-2024"]
[Site "Chess.com"]
[Date "2024.03.26"]
[Round "3"]
[White "kai_nov"]
[Black "Boudicca64"]
[Result "1-0"]
[WhiteElo "2336"]
[BlackElo "1830"]
[TimeControl "180+1"]
[EndTime "8:27:33 PDT"]
[Termination "kai_nov won on time"]

1. e4 {[%clk 0:02:54.5]} 1... g6 {[%clk 0:02:55.5]} 2. d4 {[%clk 0:02:50.6]}
2... Bg7 {[%clk 0:02:54.1]} 3. Nc3 {[%clk 0:02:49.8]} 3... c5 {[%clk 0:02:52.2]}
4. dxc5 {[%clk 0:02:48.6]} 4... Qa5 {[%clk 0:02:49.7]} 5. Bd2 {[%clk 0:02:40.3]}
5... Qxc5 {[%clk 0:02:43.5]} 6. Nf3 {[%clk 0:02:39.8]} 6... Nf6 {[%clk
0:02:34.2]} 7. Bd3 {[%clk 0:02:38.4]} 7... O-O {[%clk 0:02:30.3]} 8. O-O {[%clk
0:02:37.2]} 8... d6 {[%clk 0:02:28]} 9. Be3 {[%clk 0:02:35.2]} 9... Qb4 {[%clk
0:02:25.7]} 10. a3 {[%clk 0:02:32.6]} 10... Qxb2 {[%clk 0:02:19.1]} 11. Na4
{[%clk 0:02:29.7]} 11... Qxa1 {[%clk 0:01:58.8]} 12. Qxa1 {[%clk 0:02:28.6]}
12... Nxe4 {[%clk 0:01:58]} 13. Bd4 {[%clk 0:02:25.8]} 13... Nf6 {[%clk
0:01:38.2]} 14. Nc3 {[%clk 0:02:22.6]} 14... Nc6 {[%clk 0:01:35.9]} 15. Be3
{[%clk 0:02:14]} 15... Bg4 {[%clk 0:01:32.8]} 16. Be2 {[%clk 0:02:03.9]} 16...
Ne4 {[%clk 0:01:23.7]} 17. Nd4 {[%clk 0:01:46.4]} 17... Nxc3 {[%clk 0:01:17.2]}
18. Bxg4 {[%clk 0:01:42.3]} 18... Nxd4 {[%clk 0:01:02.4]} 19. Qe1 {[%clk
0:01:40.8]} 19... Nd5 {[%clk 0:00:42.6]} 20. Bxd4 {[%clk 0:01:37.3]} 20... Bxd4
{[%clk 0:00:40.2]} 21. Bf3 {[%clk 0:01:35.8]} 21... e6 {[%clk 0:00:19.6]} 22.
Bxd5 {[%clk 0:01:22.9]} 22... exd5 {[%clk 0:00:18]} 23. Qd2 {[%clk 0:01:23]}
23... Bc5 {[%clk 0:00:16.7]} 24. Qxd5 {[%clk 0:01:21.2]} 24... b6 {[%clk
0:00:15.8]} 25. c4 {[%clk 0:01:21.1]} 25... Rfe8 {[%clk 0:00:14.8]} 26. g3
{[%clk 0:01:21.4]} 26... Re5 {[%clk 0:00:13.5]} 27. Qf3 {[%clk 0:01:18.5]} 27...
Rae8 {[%clk 0:00:11.1]} 28. Kg2 {[%clk 0:01:16.1]} 28... Re2 {[%clk 0:00:09.5]}
29. Qd3 {[%clk 0:01:05.4]} 29... Ra2 {[%clk 0:00:07]} 30. h4 {[%clk 0:01:00]}
30... Ree2 {[%clk 0:00:06.4]} 31. Qd5 {[%clk 0:00:55.3]} 31... Bxf2 {[%clk
0:00:03.4]} 32. Kh3 {[%clk 0:00:52.7]} 32... h5 {[%clk 0:00:01.4]} 33. Qa8+
{[%clk 0:00:51.2]} 1-0

[Event "Early-Titled-Tuesday-Blitz-March-26-2024"]
[Site "Chess.com"]
[Date "2024.03.26"]
[Round "3"]
[White "alekroth65"]
[Black "BozeKat"]
[Result "1-0"]
[WhiteElo "2388"]
[BlackElo "2068"]
[TimeControl "180+1"]
[EndTime "8:27:37 PDT"]
[Termination "alekroth65 won by resignation"]

1. d4 {[%clk 0:03:00.9]} 1... d5 {[%clk 0:02:59.4]} 2. c4 {[%clk 0:03:00.9]}
2... e6 {[%clk 0:02:59.2]} 3. Nf3 {[%clk 0:03:01.3]} 3... Nf6 {[%clk 0:02:59]}
4. Bg5 {[%clk 0:03:01.6]} 4... Nbd7 {[%clk 0:02:58.6]} 5. cxd5 {[%clk
0:02:59.1]} 5... exd5 {[%clk 0:02:57.9]} 6. e3 {[%clk 0:02:59.5]} 6... Be7
{[%clk 0:02:55.8]} 7. Nc3 {[%clk 0:02:57.3]} 7... h6 {[%clk 0:02:54.5]} 8. Bf4
{[%clk 0:02:50.9]} 8... c6 {[%clk 0:02:53.9]} 9. Qc2 {[%clk 0:02:49.4]} 9... O-O
{[%clk 0:02:51.4]} 10. Bd3 {[%clk 0:02:49.2]} 10... Re8 {[%clk 0:02:47.5]} 11.
O-O {[%clk 0:02:49]} 11... Nf8 {[%clk 0:02:45.1]} 12. h3 {[%clk 0:02:44.7]}
12... Ne6 {[%clk 0:02:29.4]} 13. Bh2 {[%clk 0:02:38.1]} 13... Bd7 {[%clk
0:02:28.9]} 14. Ne5 {[%clk 0:02:37.7]} 14... Rc8 {[%clk 0:02:25.1]} 15. Bf5
{[%clk 0:02:33.7]} 15... Nf8 {[%clk 0:02:21.8]} 16. Nxd7 {[%clk 0:02:24.3]}
16... N8xd7 {[%clk 0:02:04.2]} 17. Rab1 {[%clk 0:02:23.8]} 17... b6 {[%clk
0:01:43.1]} 18. b4 {[%clk 0:02:20.6]} 18... c5 {[%clk 0:01:43.1]} 19. bxc5
{[%clk 0:02:19.9]} 19... bxc5 {[%clk 0:01:44]} 20. Nb5 {[%clk 0:01:56]} 20...
cxd4 {[%clk 0:01:18.8]} 21. Bc7 {[%clk 0:01:52.6]} 21... a6 {[%clk 0:01:09.3]}
22. Bxd8 {[%clk 0:01:47.8]} 22... Rxc2 {[%clk 0:01:08.1]} 23. Bxe7 {[%clk
0:01:33.9]} 23... Rxa2 {[%clk 0:00:59]} 24. Bxf6 {[%clk 0:01:25]} 24... Nxf6
{[%clk 0:00:56.6]} 25. Nxd4 {[%clk 0:01:24.1]} 25... g6 {[%clk 0:00:53.9]} 26.
Bd3 {[%clk 0:01:20.8]} 26... a5 {[%clk 0:00:46.4]} 27. Ra1 {[%clk 0:01:19.1]}
27... Rd2 {[%clk 0:00:46.4]} 28. Rfd1 {[%clk 0:01:18.5]} 28... Rxd1+ {[%clk
0:00:44.3]} 29. Rxd1 {[%clk 0:01:19.4]} 29... Rc8 {[%clk 0:00:40.9]} 30. Ra1
{[%clk 0:01:19.3]} 30... Rc3 {[%clk 0:00:39]} 31. Bc2 {[%clk 0:01:10.9]} 31...
Rc5 {[%clk 0:00:36.4]} 32. Kf1 {[%clk 0:01:06.7]} 32... Kg7 {[%clk 0:00:36.3]}
33. Ke2 {[%clk 0:01:06.2]} 33... Nd7 {[%clk 0:00:36.2]} 34. Kd2 {[%clk
0:00:57.9]} 34... Nb6 {[%clk 0:00:35.4]} 35. Bd3 {[%clk 0:00:51.4]} 35... a4
{[%clk 0:00:32.9]} 36. Rb1 {[%clk 0:00:47.9]} 36... Nd7 {[%clk 0:00:11.6]} 37.
Rb7 {[%clk 0:00:45.9]} 37... Ne5 {[%clk 0:00:11.1]} 38. Ne6+ {[%clk 0:00:45]}
1-0

[Event "Early-Titled-Tuesday-Blitz-March-26-2024"]
[Site "Chess.com"]
[Date "2024.03.26"]
[Round "3"]
[White "deribas12345"]
[Black "leoduarte"]
[Result "1-0"]
[WhiteElo "2616"]
[BlackElo "2402"]
[TimeControl "180+1"]
[EndTime "8:27:38 PDT"]
[Termination "deribas12345 won on time"]

1. d4 {[%clk 0:03:00.9]} 1... d5 {[%clk 0:02:50.5]} 2. c4 {[%clk 0:03:00.8]}
2... dxc4 {[%clk 0:02:50.7]} 3. Nc3 {[%clk 0:03:01.3]} 3... Nf6 {[%clk
0:02:43.3]} 4. e4 {[%clk 0:03:00.5]} 4... e5 {[%clk 0:02:43.5]} 5. d5 {[%clk
0:02:52.4]} 5... c6 {[%clk 0:02:42.5]} 6. Bxc4 {[%clk 0:02:51.4]} 6... Bb4
{[%clk 0:02:43]} 7. Ne2 {[%clk 0:02:41.3]} 7... Nxe4 {[%clk 0:02:22.2]} 8. O-O
{[%clk 0:02:41]} 8... Nxc3 {[%clk 0:02:19.5]} 9. bxc3 {[%clk 0:02:40.6]} 9...
Bd6 {[%clk 0:01:54.4]} 10. Ng3 {[%clk 0:02:27.4]} 10... O-O {[%clk 0:01:53.4]}
11. Ne4 {[%clk 0:02:25.5]} 11... cxd5 {[%clk 0:01:50.1]} 12. Bxd5 {[%clk
0:02:25.2]} 12... Be7 {[%clk 0:01:41.4]} 13. Be3 {[%clk 0:02:09.4]} 13... Nc6
{[%clk 0:01:39.7]} 14. Rb1 {[%clk 0:02:09.6]} 14... Kh8 {[%clk 0:01:35.2]} 15.
c4 {[%clk 0:02:04.6]} 15... f5 {[%clk 0:01:00.2]} 16. Nc3 {[%clk 0:02:01.6]}
16... Bf6 {[%clk 0:00:48.9]} 17. Bc5 {[%clk 0:01:51.9]} 17... Be7 {[%clk
0:00:45.8]} 18. Bxe7 {[%clk 0:01:48.6]} 18... Qxe7 {[%clk 0:00:43.3]} 19. Qa4
{[%clk 0:01:39.8]} 19... Nd4 {[%clk 0:00:38.4]} 20. Rfe1 {[%clk 0:01:39]} 20...
Qc7 {[%clk 0:00:32.5]} 21. h3 {[%clk 0:01:02.4]} 21... Ne6 {[%clk 0:00:32.3]}
22. Nb5 {[%clk 0:01:00.2]} 22... Qb8 {[%clk 0:00:28.5]} 23. Qb4 {[%clk
0:00:59.8]} 23... Bd7 {[%clk 0:00:16.9]} 24. Nd6 {[%clk 0:00:56.2]} 24... Nd4
{[%clk 0:00:04.1]} 25. Rb2 {[%clk 0:00:51.1]} 25... Bc6 {[%clk 0:00:04]} 26.
Nf7+ {[%clk 0:00:43.6]} 26... Rxf7 {[%clk 0:00:04]} 27. Bxf7 {[%clk 0:00:44.5]}
27... f4 {[%clk 0:00:02.3]} 28. Bd5 {[%clk 0:00:44.3]} 28... Bxd5 {[%clk
0:00:01.9]} 29. cxd5 {[%clk 0:00:44.5]} 29... f3 {[%clk 0:00:02.5]} 30. Qe7
{[%clk 0:00:39.3]} 1-0

[Event "Early-Titled-Tuesday-Blitz-March-26-2024"]
[Site "Chess.com"]
[Date "2024.03.26"]
[Round "3"]
[White "Philippians46"]
[Black "kingofthenil"]
[Result "1-0"]
[WhiteElo "3022"]
[BlackElo "2783"]
[TimeControl "180+1"]
[EndTime "8:27:41 PDT"]
[Termination "Philippians46 won on time"]

1. d4 {[%clk 0:03:00.9]} 1... d5 {[%clk 0:02:56.7]} 2. c4 {[%clk 0:03:01.3]}
2... dxc4 {[%clk 0:02:55.8]} 3. Nf3 {[%clk 0:02:59.7]} 3... b5 {[%clk
0:02:52.6]} 4. a4 {[%clk 0:02:57.4]} 4... b4 {[%clk 0:02:49.3]} 5. e3 {[%clk
0:02:56.5]} 5... Nf6 {[%clk 0:02:49.5]} 6. Bxc4 {[%clk 0:02:56]} 6... e6 {[%clk
0:02:49.8]} 7. a5 {[%clk 0:02:54.6]} 7... c5 {[%clk 0:02:43.8]} 8. O-O {[%clk
0:02:52.3]} 8... Be7 {[%clk 0:02:39.7]} 9. Nbd2 {[%clk 0:02:42]} 9... O-O {[%clk
0:02:31.2]} 10. dxc5 {[%clk 0:02:22]} 10... Qc7 {[%clk 0:02:10.8]} 11. Nb3
{[%clk 0:02:15.1]} 11... Na6 {[%clk 0:01:57]} 12. Bd2 {[%clk 0:01:45.8]} 12...
Rb8 {[%clk 0:01:43.5]} 13. Rc1 {[%clk 0:01:42.5]} 13... Ne4 {[%clk 0:01:26.9]}
14. c6 {[%clk 0:01:36.1]} 14... Qxc6 {[%clk 0:01:15.1]} 15. Nbd4 {[%clk
0:01:36.2]} 15... Qa8 {[%clk 0:01:04.4]} 16. Qe2 {[%clk 0:01:33.3]} 16... Nac5
{[%clk 0:01:02.9]} 17. Rfd1 {[%clk 0:01:33.6]} 17... a6 {[%clk 0:00:58.3]} 18.
Be1 {[%clk 0:01:18.2]} 18... Bf6 {[%clk 0:00:48.4]} 19. Nb3 {[%clk 0:01:09.4]}
19... Na4 {[%clk 0:00:40.4]} 20. Nfd4 {[%clk 0:01:06.4]} 20... Rd8 {[%clk
0:00:34.7]} 21. f3 {[%clk 0:00:50.9]} 21... Nec5 {[%clk 0:00:20.7]} 22. Bg3
{[%clk 0:00:49.8]} 22... e5 {[%clk 0:00:16]} 23. Nc2 {[%clk 0:00:29.6]} 23...
Be6 {[%clk 0:00:03.8]} 24. Rxd8+ {[%clk 0:00:20.9]} 1-0

[Event "Early-Titled-Tuesday-Blitz-March-26-2024"]
[Site "Chess.com"]
[Date "2024.03.26"]
[Round "3"]
[White "dealshark"]
[Black "babyking1205"]
[Result "0-1"]
[WhiteElo "2310"]
[BlackElo "2615"]
[TimeControl "180+1"]
[EndTime "8:27:42 PDT"]
[Termination "babyking1205 won by checkmate"]

1. Nf3 {[%clk 0:03:00.9]} 1... c5 {[%clk 0:01:44.9]} 2. g3 {[%clk 0:03:00.2]}
2... d5 {[%clk 0:01:40.8]} 3. Bg2 {[%clk 0:02:59.4]} 3... Nf6 {[%clk 0:01:40.5]}
4. O-O {[%clk 0:02:58.3]} 4... g6 {[%clk 0:01:38.9]} 5. d4 {[%clk 0:02:58.2]}
5... cxd4 {[%clk 0:01:38.5]} 6. Nxd4 {[%clk 0:02:59.1]} 6... Bg7 {[%clk
0:01:38.8]} 7. c4 {[%clk 0:02:59.7]} 7... Nc6 {[%clk 0:01:36.4]} 8. Nc3 {[%clk
0:02:56.5]} 8... e6 {[%clk 0:01:31.7]} 9. Bg5 {[%clk 0:02:54.8]} 9... h6 {[%clk
0:01:30.6]} 10. Bf4 {[%clk 0:02:46.4]} 10... O-O {[%clk 0:01:28.6]} 11. cxd5
{[%clk 0:02:36.2]} 11... Nxd4 {[%clk 0:01:27.6]} 12. Qxd4 {[%clk 0:02:31.5]}
12... Nxd5 {[%clk 0:01:25.4]} 13. Qc4 {[%clk 0:02:19.5]} 13... Nxc3 {[%clk
0:01:22.9]} 14. bxc3 {[%clk 0:02:17.5]} 14... e5 {[%clk 0:01:23.6]} 15. Be3
{[%clk 0:02:15.9]} 15... Be6 {[%clk 0:01:23.3]} 16. Qb4 {[%clk 0:02:13.1]} 16...
Qc7 {[%clk 0:01:23.1]} 17. Bc5 {[%clk 0:02:09.8]} 17... Rfc8 {[%clk 0:01:22.2]}
18. Bd6 {[%clk 0:02:01.5]} 18... Qxc3 {[%clk 0:01:09.7]} 19. Qxb7 {[%clk
0:02:01.3]} 19... Qc2 {[%clk 0:01:05.2]} 20. h4 {[%clk 0:01:38.7]} 20... Qxe2
{[%clk 0:01:00.1]} 21. Rfe1 {[%clk 0:01:29.3]} 21... Qd2 {[%clk 0:00:58.5]} 22.
Rad1 {[%clk 0:01:28.3]} 22... Qxa2 {[%clk 0:00:57.8]} 23. Qb5 {[%clk 0:01:23.4]}
23... a5 {[%clk 0:00:50.6]} 24. Bxa8 {[%clk 0:01:21.8]} 24... Rxa8 {[%clk
0:00:51.5]} 25. Bxe5 {[%clk 0:01:21.6]} 25... Bf8 {[%clk 0:00:51.5]} 26. Ra1
{[%clk 0:01:18.4]} 26... Qd2 {[%clk 0:00:51.2]} 27. Bf4 {[%clk 0:01:16.3]} 27...
Qc3 {[%clk 0:00:49.6]} 28. Rec1 {[%clk 0:01:15.3]} 28... Qf3 {[%clk 0:00:49.5]}
29. Rxa5 {[%clk 0:01:10.8]} 29... Rxa5 {[%clk 0:00:48.8]} 30. Qxa5 {[%clk
0:01:11.1]} 30... Bd5 {[%clk 0:00:49.5]} 31. Kf1 {[%clk 0:01:08.6]} 31... Qd3+
{[%clk 0:00:38]} 32. Kg1 {[%clk 0:01:02.6]} 32... Qe4 {[%clk 0:00:37.6]} 33. Kf1
{[%clk 0:00:59]} 33... Bb4 {[%clk 0:00:36.2]} 34. Rc8+ {[%clk 0:00:52.5]} 34...
Kh7 {[%clk 0:00:34.7]} 35. Qd8 {[%clk 0:00:26.3]} 35... Qd3+ {[%clk 0:00:33.7]}
36. Kg1 {[%clk 0:00:19.4]} 36... Qd1+ {[%clk 0:00:34.6]} 37. Kh2 {[%clk
0:00:19.6]} 37... Qh1# {[%clk 0:00:35.3]} 0-1

[Event "Early-Titled-Tuesday-Blitz-March-26-2024"]
[Site "Chess.com"]
[Date "2024.03.26"]
[Round "3"]
[White "Mysterio47"]
[Black "KarstenHansch"]
[Result "1-0"]
[WhiteElo "2713"]
[BlackElo "2497"]
[TimeControl "180+1"]
[EndTime "8:27:46 PDT"]
[Termination "Mysterio47 won by resignation"]

1. e4 {[%clk 0:03:00.9]} 1... c5 {[%clk 0:03:00.1]} 2. Nf3 {[%clk 0:03:00]} 2...
e6 {[%clk 0:03:00.5]} 3. d4 {[%clk 0:02:57.6]} 3... cxd4 {[%clk 0:03:01.4]} 4.
Nxd4 {[%clk 0:02:58.5]} 4... Nc6 {[%clk 0:03:01.9]} 5. Nc3 {[%clk 0:02:58]} 5...
a6 {[%clk 0:03:02.2]} 6. Be3 {[%clk 0:02:56.2]} 6... Nf6 {[%clk 0:03:01.8]} 7.
a3 {[%clk 0:02:56]} 7... Qc7 {[%clk 0:03:01.4]} 8. Be2 {[%clk 0:02:56.1]} 8...
b5 {[%clk 0:03:01.3]} 9. Nxc6 {[%clk 0:02:52.9]} 9... Qxc6 {[%clk 0:03:02.2]}
10. Bf3 {[%clk 0:02:49.5]} 10... e5 {[%clk 0:02:52]} 11. O-O {[%clk 0:02:43.9]}
11... d6 {[%clk 0:02:49.4]} 12. Bg5 {[%clk 0:02:34.2]} 12... Be6 {[%clk
0:02:48.8]} 13. Bxf6 {[%clk 0:02:29.5]} 13... gxf6 {[%clk 0:02:49.7]} 14. a4
{[%clk 0:02:29.3]} 14... b4 {[%clk 0:02:48.7]} 15. Nd5 {[%clk 0:02:29.7]} 15...
Bxd5 {[%clk 0:02:48.8]} 16. exd5 {[%clk 0:02:30.6]} 16... Qc4 {[%clk 0:02:42.2]}
17. Bg4 {[%clk 0:02:17.7]} 17... Rg8 {[%clk 0:02:32.9]} 18. h3 {[%clk
0:02:12.3]} 18... Bh6 {[%clk 0:02:30.5]} 19. a5 {[%clk 0:02:06.2]} 19... Ke7
{[%clk 0:02:30.5]} 20. c3 {[%clk 0:01:47.2]} 20... Rab8 {[%clk 0:02:16.9]} 21.
Ra4 {[%clk 0:01:28.1]} 21... Rb5 {[%clk 0:02:11.5]} 22. Be2 {[%clk 0:01:22.7]}
22... Qxd5 {[%clk 0:02:04.1]} 23. Qxd5 {[%clk 0:01:18.5]} 23... Rxd5 {[%clk
0:02:05]} 24. cxb4 {[%clk 0:01:15]} 24... Rd4 {[%clk 0:01:48.6]} 25. Bxa6 {[%clk
0:01:13.2]} 25... Rb8 {[%clk 0:01:49.2]} 26. Rfa1 {[%clk 0:01:09.3]} 26... Bd2
{[%clk 0:01:47.4]} 27. Be2 {[%clk 0:00:52.7]} 27... Bxb4 {[%clk 0:01:40.5]} 28.
a6 {[%clk 0:00:51.6]} 28... Bc5 {[%clk 0:01:40.6]} 29. Rxd4 {[%clk 0:00:40.1]}
29... Bxd4 {[%clk 0:01:40.4]} 30. Bf3 {[%clk 0:00:33.2]} 30... Ba7 {[%clk
0:01:29.5]} 31. Rc1 {[%clk 0:00:30.1]} 31... Kd7 {[%clk 0:01:12.9]} 32. Bc6+
{[%clk 0:00:28.3]} 32... Ke6 {[%clk 0:01:10.4]} 33. Bb7 {[%clk 0:00:29.2]} 33...
f5 {[%clk 0:01:05.3]} 34. b4 {[%clk 0:00:29.4]} 34... e4 {[%clk 0:01:04.2]} 35.
b5 {[%clk 0:00:29.8]} 35... e3 {[%clk 0:01:03.9]} 36. Kf1 {[%clk 0:00:27.8]}
36... exf2 {[%clk 0:01:03.6]} 37. Rc6 {[%clk 0:00:27.5]} 37... Bd4 {[%clk
0:00:50.8]} 38. b6 {[%clk 0:00:25.8]} 38... Re8 {[%clk 0:00:37]} 39. Rc8 {[%clk
0:00:21.4]} 1-0

[Event "Early-Titled-Tuesday-Blitz-March-26-2024"]
[Site "Chess.com"]
[Date "2024.03.26"]
[Round "3"]
[White "KacperKacprzak"]
[Black "esrosenberg"]
[Result "1-0"]
[WhiteElo "2696"]
[BlackElo "2475"]
[TimeControl "180+1"]
[EndTime "8:27:50 PDT"]
[Termination "KacperKacprzak won by resignation"]

1. e4 {[%clk 0:03:00.9]} 1... e5 {[%clk 0:02:59.4]} 2. Nf3 {[%clk 0:03:00.5]}
2... Nc6 {[%clk 0:02:59.9]} 3. Nc3 {[%clk 0:03:01]} 3... Nf6 {[%clk 0:03:00]} 4.
h3 {[%clk 0:03:01.7]} 4... d5 {[%clk 0:02:59.5]} 5. exd5 {[%clk 0:03:02.6]} 5...
Nxd5 {[%clk 0:02:59.7]} 6. Bb5 {[%clk 0:03:03.3]} 6... Nxc3 {[%clk 0:02:50.9]}
7. bxc3 {[%clk 0:03:04.2]} 7... Bd6 {[%clk 0:02:50]} 8. O-O {[%clk 0:03:04.4]}
8... O-O {[%clk 0:02:49.3]} 9. Re1 {[%clk 0:03:05.1]} 9... f6 {[%clk 0:02:47.9]}
10. d4 {[%clk 0:03:04.7]} 10... exd4 {[%clk 0:02:41.5]} 11. cxd4 {[%clk
0:03:05.6]} 11... Bf5 {[%clk 0:02:39.5]} 12. c4 {[%clk 0:02:59]} 12... Bb4
{[%clk 0:02:27.6]} 13. Bd2 {[%clk 0:02:52.4]} 13... Bxd2 {[%clk 0:02:25.5]} 14.
Qxd2 {[%clk 0:02:53.3]} 14... Qd6 {[%clk 0:02:19]} 15. c5 {[%clk 0:02:20.4]}
15... Qd8 {[%clk 0:01:58.7]} 16. d5 {[%clk 0:02:17.9]} 16... Ne7 {[%clk
0:01:51.7]} 17. Rad1 {[%clk 0:02:18]} 17... c6 {[%clk 0:01:36.3]} 18. d6 {[%clk
0:01:36.7]} 18... Ng6 {[%clk 0:01:24.3]} 19. Bc4+ {[%clk 0:01:35.8]} 19... Kh8
{[%clk 0:01:24.1]} 20. Nd4 {[%clk 0:01:35.8]} 20... Bd7 {[%clk 0:01:22.8]} 21.
f4 {[%clk 0:01:33.7]} 21... b6 {[%clk 0:01:21.7]} 22. Nb3 {[%clk 0:01:28.4]}
22... bxc5 {[%clk 0:01:18.5]} 23. Qf2 {[%clk 0:01:24.3]} 23... Re8 {[%clk
0:00:51.6]} 24. Nxc5 {[%clk 0:01:22.1]} 24... Rxe1+ {[%clk 0:00:48.1]} 25. Rxe1
{[%clk 0:01:23]} 25... Bf5 {[%clk 0:00:26.3]} 26. Qd4 {[%clk 0:00:55.2]} 26...
Rb8 {[%clk 0:00:17.4]} 27. g4 {[%clk 0:00:48.7]} 27... Rb1 {[%clk 0:00:15.5]}
28. Rxb1 {[%clk 0:00:46.2]} 28... Bxb1 {[%clk 0:00:16.4]} 29. d7 {[%clk
0:00:43.1]} 29... Nh4 {[%clk 0:00:15.7]} 30. Qd6 {[%clk 0:00:40.4]} 30... g5
{[%clk 0:00:09.6]} 31. Kh2 {[%clk 0:00:33.3]} 31... Nf3+ {[%clk 0:00:08.8]} 32.
Kg2 {[%clk 0:00:30.1]} 32... Nh4+ {[%clk 0:00:08.1]} 33. Kg3 {[%clk 0:00:30.4]}
33... Ng6 {[%clk 0:00:08.4]} 34. Ne6 {[%clk 0:00:28.7]} 34... gxf4+ {[%clk
0:00:06.7]} 35. Kh2 {[%clk 0:00:29.3]} 1-0

[Event "Early-Titled-Tuesday-Blitz-March-26-2024"]
[Site "Chess.com"]
[Date "2024.03.26"]
[Round "3"]
[White "abelmat"]
[Black "JJDAREK"]
[Result "0-1"]
[WhiteElo "2082"]
[BlackElo "2390"]
[TimeControl "180+1"]
[EndTime "8:27:54 PDT"]
[Termination "JJDAREK won on time"]

1. d4 {[%clk 0:03:00.9]} 1... d6 {[%clk 0:02:59.7]} 2. c4 {[%clk 0:03:00.6]}
2... e5 {[%clk 0:02:58.6]} 3. e3 {[%clk 0:03:00]} 3... exd4 {[%clk 0:02:57.6]}
4. exd4 {[%clk 0:03:00.9]} 4... g6 {[%clk 0:02:56.4]} 5. Nf3 {[%clk 0:03:01.7]}
5... Bg7 {[%clk 0:02:56]} 6. Be2 {[%clk 0:03:00.9]} 6... Bg4 {[%clk 0:02:54.6]}
7. O-O {[%clk 0:02:59.9]} 7... Ne7 {[%clk 0:02:54.5]} 8. Nc3 {[%clk 0:02:59.1]}
8... Nbc6 {[%clk 0:02:52.6]} 9. Be3 {[%clk 0:02:58.9]} 9... O-O {[%clk
0:02:51.5]} 10. Qd2 {[%clk 0:02:58.9]} 10... Bxf3 {[%clk 0:02:44.1]} 11. Bxf3
{[%clk 0:02:58.5]} 11... Nf5 {[%clk 0:02:44.6]} 12. Ne2 {[%clk 0:02:42.5]} 12...
Re8 {[%clk 0:02:41.4]} 13. Rad1 {[%clk 0:02:32.5]} 13... h5 {[%clk 0:02:28.4]}
14. Bxc6 {[%clk 0:02:31.9]} 14... bxc6 {[%clk 0:02:27.1]} 15. Nf4 {[%clk
0:02:19.1]} 15... Bh6 {[%clk 0:02:09.3]} 16. Rfe1 {[%clk 0:02:00.3]} 16... Re4
{[%clk 0:01:50.2]} 17. g3 {[%clk 0:01:09.7]} 17... Bxf4 {[%clk 0:01:32.9]} 18.
Bxf4 {[%clk 0:01:07.2]} 18... Rxd4 {[%clk 0:01:32.5]} 19. Qc3 {[%clk 0:00:58.6]}
19... c5 {[%clk 0:01:15.7]} 20. Rxd4 {[%clk 0:00:34.2]} 20... Nxd4 {[%clk
0:01:16.6]} 21. Re4 {[%clk 0:00:20]} 21... Qf6 {[%clk 0:01:10.9]} 22. Qe3 {[%clk
0:00:16.5]} 22... g5 {[%clk 0:00:44.3]} 23. Rxd4 {[%clk 0:00:06.3]} 23... cxd4
{[%clk 0:00:41.9]} 24. Qe4 {[%clk 0:00:05.3]} 24... d5 {[%clk 0:00:20.2]} 25.
Qxd5 {[%clk 0:00:03.5]} 25... c6 {[%clk 0:00:20.3]} 0-1

[Event "Early-Titled-Tuesday-Blitz-March-26-2024"]
[Site "Chess.com"]
[Date "2024.03.26"]
[Round "3"]
[White "GMJustin"]
[Black "Chess4always"]
[Result "0-1"]
[WhiteElo "2353"]
[BlackElo "1994"]
[TimeControl "180+1"]
[EndTime "8:27:55 PDT"]
[Termination "Chess4always won on time"]

1. d4 {[%clk 0:02:54.5]} 1... d5 {[%clk 0:02:59.2]} 2. c4 {[%clk 0:02:53.7]}
2... e5 {[%clk 0:02:58.8]} 3. dxe5 {[%clk 0:02:49.3]} 3... d4 {[%clk 0:02:58.6]}
4. Nf3 {[%clk 0:02:34.6]} 4... Nc6 {[%clk 0:02:58.9]} 5. g3 {[%clk 0:02:34.6]}
5... Be6 {[%clk 0:02:53.7]} 6. Nbd2 {[%clk 0:02:29.7]} 6... Nge7 {[%clk
0:02:52.1]} 7. Bg2 {[%clk 0:02:19.2]} 7... Ng6 {[%clk 0:02:42.6]} 8. O-O {[%clk
0:02:16.5]} 8... Qd7 {[%clk 0:02:42.3]} 9. Qa4 {[%clk 0:02:00.2]} 9... h5 {[%clk
0:02:09.2]} 10. Nb3 {[%clk 0:01:53.9]} 10... Ncxe5 {[%clk 0:01:37.9]} 11. Qxd7+
{[%clk 0:01:52.8]} 11... Bxd7 {[%clk 0:01:35.2]} 12. Nxe5 {[%clk 0:01:22.6]}
12... Nxe5 {[%clk 0:01:36.1]} 13. Nxd4 {[%clk 0:01:22.5]} 13... O-O-O {[%clk
0:01:30.2]} 14. b3 {[%clk 0:01:17.4]} 14... Bc5 {[%clk 0:01:28.5]} 15. Bb2
{[%clk 0:01:15.1]} 15... f6 {[%clk 0:01:27.9]} 16. h4 {[%clk 0:00:53.3]} 16...
Bg4 {[%clk 0:01:22.2]} 17. Nf3 {[%clk 0:00:27.1]} 17... Bxf3 {[%clk 0:01:17.3]}
18. exf3 {[%clk 0:00:23.4]} 18... Nd3 {[%clk 0:01:11.7]} 19. Bc3 {[%clk
0:00:20.8]} 19... Rhe8 {[%clk 0:01:05.8]} 20. Rad1 {[%clk 0:00:11.4]} 20... Re2
{[%clk 0:00:45.8]} 21. Bh3+ {[%clk 0:00:11]} 21... Kb8 {[%clk 0:00:41.4]} 22. b4
{[%clk 0:00:04.4]} 22... Bxf2+ {[%clk 0:00:24.3]} 23. Rxf2 {[%clk 0:00:04.2]}
23... Rxf2 {[%clk 0:00:24.9]} 24. Rxd3 {[%clk 0:00:04.1]} 24... Rxd3 {[%clk
0:00:24.6]} 25. Kxf2 {[%clk 0:00:04.3]} 25... Rxc3 {[%clk 0:00:25]} 26. c5
{[%clk 0:00:02.9]} 26... Rc2+ {[%clk 0:00:25.3]} 27. Ke3 {[%clk 0:00:02.5]}
27... Rxa2 {[%clk 0:00:26.2]} 28. Bf5 {[%clk 0:00:01.7]} 28... Ra3+ {[%clk
0:00:26.2]} 29. Kf4 {[%clk 0:00:01.4]} 29... c6 {[%clk 0:00:26.1]} 30. Bg6
{[%clk 0:00:01.4]} 30... Rb3 {[%clk 0:00:24.9]} 31. Bxh5 {[%clk 0:00:01.6]}
31... Rxb4+ {[%clk 0:00:25.4]} 32. Kf5 {[%clk 0:00:02]} 32... Rb5 {[%clk
0:00:19.1]} 0-1